fUSD/lending_fUSD_20240629
["ID","MTS","AMOUNT","RATE_DAILY","PERIOD"]
[330630672,1719661843457,-388.948644,0.000138,2]
[330630673,1719661843466,-4334.8852,0.000138,2]
[330630674,1719661843475,-193.50102493,0.00013802,2]
[330630675,1719661843483,-167.71989253,0.000139,2]
[330630676,1719661843492,-1600.0,0.000139,5]
[330630677,1719661843501,-190.85369923,0.000139,2]
[330630678,1719661843513,-166.34915733,0.000139,2]
[330630679,1719661843523,-160.13713916,0.00013921,2]
[330630680,1719661843531,-150.01,0.00013999,2]
[330630681,1719661843541,-5916.48029099,0.00013999,2]
[330630682,1719661843550,-3000.0,0.00013999,2]
[330630683,1719661843561,-252153.87981282,0.00014,2]
[330630687,1719661845477,-388.948644,0.000138,2]
[330630688,1719661845486,-4334.8852,0.000138,2]
[330630689,1719661845496,-65883.67918973,0.00014,2]
[330630690,1719661845507,-3567.11591837,0.00014,2]
[330630691,1719661845554,-723.96749468,0.00014,2]
[330630692,1719661845652,-13240.13548843,0.00014,2]
[330630693,1719661845683,-7591.32295621,0.00014,2]
[330630694,1719661845695,-4480.76369635,0.00014,2]
[330630695,1719661845707,-31836.46279409,0.00014,2]
[330630696,1719661845719,-165427.17737697,0.00014,2]
[330630697,1719661845728,-447598.49311007,0.00014,2]
[330630698,1719661845814,-384.47,0.00014,2]
[330630699,1719661845825,-9845.39845549,0.00014,2]
[330630700,1719661846573,-268.9298382,0.00013999,2]
[330630701,1719661846582,-91.15250744,0.00014,2]
[330630702,1719661846597,-6486.39503134,0.00014,2]
[330630703,1719661846609,-523.98031464,0.00014,2]
[330630704,1719661846620,-21888.96346288,0.00014,2]
[330630705,1719661846633,-828.46681849,0.00014,2]
[330630706,1719661846645,-1795.36741921,0.00014,2]
[330630707,1719661846667,-3219.5463672,0.00014,2]
[330630708,1719661846679,-1604.0647606,0.00014,2]
[330630709,1719661898289,263.9,0.00018849,30]
[330630710,1719661919414,452.56306761,0.00016969,30]
[330630711,1719661945176,3023.35359891,0.00011098,2]
[330630712,1719661985994,3107.31885347,0.00011098,2]
[330630714,1719662055293,2376.06489013,0.00011098,2]
[330630715,1719662067052,1102.81224386,0.00011098,2]
[330630716,1719662074529,1340.78020771,0.00011098,2]
[330630717,1719662094477,531.23979859,0.00011098,2]
[330630718,1719662166831,625.33216649,0.00011098,2]
[330630720,1719662208810,207.71704746,0.00011098,2]
[330630721,1719662227732,216.26835515,0.00011098,2]
[330630722,1719662480761,241.9,0.00018849,30]
[330630723,1719662534827,10000.0,0.00026,120]
[330630724,1719662603531,525.75,0.00010576,2]
[330630739,1719663031641,-15427.22902033,0.00011199,2]
[330630741,1719663031651,-800.0,0.00012167,2]
[330630743,1719663031659,-208.65,0.00012295,2]
[330630745,1719663031669,-250.0,0.00012435,2]
[330630747,1719663031678,-700.98,0.00012439,2]
[330630748,1719663031687,-23900.0,0.00012485,2]
[330630749,1719663031696,-250.0,0.00012486,2]
[330630750,1719663031705,-1815.42,0.00012582,2]
[330630751,1719663031715,-1494.2292,0.00012728,2]
[330630752,1719663031724,-150.0,0.00012827,2]
[330630753,1719663031733,-62550.389,0.00012828,2]
[330630754,1719663031743,-1258.785,0.00012828,2]
[330630755,1719663031752,-245000.0,0.00012828,2]
[330630756,1719663031761,-525.75,0.0001284,2]
[330630757,1719663031770,-184.15271349,0.000129,2]
[330630758,1719663031779,-208.65,0.00012936,2]
[330630759,1719663031788,-368.15,0.00013227,2]
[330630760,1719663031797,-368.15,0.00013231,2]
[330630761,1719663031809,-299.99,0.00013231,2]
[330630762,1719663031822,-368.15,0.00013234,2]
[330630763,1719663031831,-368.15,0.00013237,2]
[330630764,1719663031840,-368.15,0.00013241,2]
[330630765,1719663031850,-368.15,0.00013244,2]
[330630766,1719663031860,-368.15,0.00013248,2]
[330630767,1719663031875,-368.15,0.00013251,2]
[330630768,1719663031883,-368.15,0.00013255,2]
[330630769,1719663031892,-368.15,0.00013258,2]
[330630770,1719663031901,-368.15,0.00013262,2]
[330630771,1719663031912,-368.15,0.00013265,2]
[330630772,1719663031921,-368.15,0.00013269,2]
[330630773,1719663031930,-368.15,0.00013272,2]
[330630774,1719663031940,-368.15,0.00013276,2]
[330630775,1719663031950,-368.15,0.00013279,2]
[330630776,1719663031959,-368.15,0.00013283,2]
[330630777,1719663031968,-368.15,0.00013286,2]
[330630778,1719663031977,-368.15,0.0001329,2]
[330630779,1719663031986,-368.15,0.00013293,2]
[330630780,1719663031995,-800.0,0.00013687,2]
[330630781,1719663032004,-243.23,0.00013699,2]
[330630782,1719663032013,-400.0,0.000137,5]
[330630783,1719663032022,-163.42,0.00013788,2]
[330630785,1719663032031,-14241.6635961,0.0001379,2]
[330630786,1719663032041,-14241.66359608,0.0001379,2]
[330630787,1719663032054,-173.26,0.00013794,2]
[330630788,1719663032063,-972.49329735,0.00013799,2]
[330630789,1719663032072,-972.49329726,0.00013799,2]
[330630790,1719663032082,-900.0,0.000138,5]
[330630791,1719663032091,-329.54048749,0.00013889,2]
[330630792,1719663032100,-193.50102493,0.00013889,2]
[330630793,1719663032109,-4603.23590446,0.000139,2]
[330630794,1719663032118,-164.60925872,0.000139,2]
[330630795,1719663032127,-1400.0,0.000139,5]
[330630796,1719663032135,-194.18126619,0.00013979,2]
[330630797,1719663032145,-273912.61401974,0.00013989,2]
[330630798,1719663032239,-522.3297664,0.00013989,2]
[330630799,1719663032270,-273486.61150719,0.00013989,2]
[330630800,1719663032279,-700.98,0.00013993,2]
[330630801,1719663032288,-5916.48029099,0.00013999,2]
[330630802,1719663032297,-460309.19127822,0.00013999,2]
[330630803,1719663032310,-209.03096185,0.00013999,2]
[330630804,1719663032319,-640314.68527269,0.00014,2]
[330630805,1719663032359,-581.06799919,0.00014,2]
[330630806,1719663032379,-3299.21382241,0.00014,2]
[330630807,1719663032461,-10262.18339989,0.00014,2]
[330630808,1719663032473,-36737.70285173,0.00014,2]
[330630809,1719663032484,-1500.0,0.00014,2]
[330630827,1719663037684,-528.1739353,0.00013889,2]
[330630828,1719663037696,-1633.18613311,0.00013999,2]
[330630829,1719663037707,-19104.68961786,0.00014,2]
[330630830,1719663037718,-1000.0,0.00014,2]
[330630831,1719663037729,-1000.0,0.00014,2]
[330630832,1719663037738,-1000.0,0.00014,2]
[330630833,1719663037749,-1000.0,0.00014,2]
[330630834,1719663037758,-1000.0,0.00014,2]
[330630835,1719663037768,-1000.0,0.00014,2]
[330630836,1719663037778,-1000.0,0.00014,2]
[330630837,1719663037788,-1000.0,0.00014,2]
[330630838,1719663037799,-1000.0,0.00014,2]
[330630839,1719663037811,-1000.0,0.00014,2]
[330630840,1719663037822,-1000.0,0.00014,2]
[330630841,1719663037831,-1000.0,0.00014,2]
[330630842,1719663037841,-1000.0,0.00014,2]
[330630843,1719663037852,-1000.0,0.00014,2]
[330630844,1719663037864,-1000.0,0.00014,2]
[330630845,1719663037877,-1000.0,0.00014,2]
[330630846,1719663037887,-1000.0,0.00014,2]
[330630847,1719663037903,-1000.0,0.00014,2]
[330630848,1719663037916,-1000.0,0.00014,2]
[330630849,1719663037927,-1000.0,0.00014,2]
[330630850,1719663037937,-1000.0,0.00014,2]
[330630851,1719663037951,-1000.0,0.00014,2]
[330630853,1719663037961,-1000.0,0.00014,2]
[330630854,1719663037971,-1000.0,0.00014,2]
[330630855,1719663037981,-163.47041426,0.00014,2]
[330630856,1719663037991,-151.0,0.00014,2]
[330630857,1719663038001,-151.0,0.00014,2]
[330630858,1719663038012,-151.0,0.00014,2]
[330630859,1719663038023,-151.0,0.00014,2]
[330630860,1719663038033,-151.0,0.00014,2]
[330630861,1719663038043,-151.0,0.00014,2]
[330630862,1719663038055,-240.397759,0.00014,2]
[330630863,1719663038068,-554.068281,0.00014,2]
[330630864,1719663038079,-554.068281,0.00014,2]
[330630865,1719663038093,-151.0,0.00014,2]
[330630866,1719663038107,-350.05378,0.00014,2]
[330630867,1719663038118,-350.05378,0.00014,2]
[330630868,1719663038129,-151.0,0.00014,2]
[330630869,1719663038139,-154.909296,0.00014,2]
[330630870,1719663038150,-151.0,0.00014,2]
[330630871,1719663038161,-154.909296,0.00014,2]
[330630872,1719663038172,-151.0,0.00014,2]
[330630873,1719663038183,-151.0,0.00014,2]
[330630874,1719663038193,-215.511527,0.00014,2]
[330630875,1719663038204,-215.511527,0.00014,2]
[330630876,1719663038216,-151.0,0.00014,2]
[330630877,1719663038226,-151.0,0.00014,2]
[330630878,1719663038237,-151.0,0.00014,2]
[330630879,1719663038248,-757.360483,0.00014,2]
[330630880,1719663038259,-757.360483,0.00014,2]
[330630881,1719663038269,-151.0,0.00014,2]
[330630882,1719663038279,-373.595618,0.00014,2]
[330630883,1719663038289,-373.595618,0.00014,2]
[330630884,1719663038300,-326.029039,0.00014,2]
[330630885,1719663038316,-326.029039,0.00014,2]
[330630886,1719663038326,-2869.29574,0.00014,2]
[330630887,1719663038336,-151.0,0.00014,2]
[330630888,1719663038346,-151.0,0.00014,2]
[330630889,1719663038356,-151.0,0.00014,2]
[330630890,1719663038366,-336.959273,0.00014,2]
[330630891,1719663038376,-315.691999,0.00014,2]
[330630892,1719663038386,-336.959273,0.00014,2]
[330630893,1719663038396,-315.691999,0.00014,2]
[330630894,1719663038407,-208.79343,0.00014,2]
[330630895,1719663038417,-208.79343,0.00014,2]
[330630896,1719663038428,-3901.39668,0.00014,2]
[330630897,1719663038438,-3901.39668,0.00014,2]
[330630898,1719663038448,-272.67024,0.00014,2]
[330630899,1719663038458,-151.0,0.00014,2]
[330630900,1719663038468,-184.15271347,0.00014037,2]
[330630901,1719663038479,-210.0,0.00014084,2]
[330630902,1719663038490,-192.79317285,0.00014099,2]
[330630903,1719663038500,-200.0,0.00014121,2]
[330630904,1719663038511,-528.11,0.00014247,2]
[330630905,1719663038521,-528.11,0.00014247,2]
[330630906,1719663038531,-528.11,0.00014247,2]
[330630907,1719663038541,-528.11,0.00014247,2]
[330630908,1719663038552,-169.15,0.00014247,2]
[330630909,1719663038564,-4603.23590446,0.00014689,2]
[330630910,1719663038575,-972.49329726,0.0001483,2]
[330630911,1719663038588,-14241.66359608,0.0001483,2]
[330630912,1719663038599,-528.11,0.00014868,2]
[330630913,1719663038609,-150.0,0.00014999,2]
[330630914,1719663038620,-134516.98227795,0.00015,2]
[330630934,1719663042828,-193.50102493,0.00013849,2]
[330630935,1719663042838,-23178.14625443,0.00015,2]
[330630936,1719663042847,-26597.32308593,0.00015,2]
[330630937,1719663042857,-151.0,0.00015,2]
[330630938,1719663042870,-151.0,0.00015,2]
[330630939,1719663042879,-151.0,0.00015,2]
[330630940,1719663042889,-151.0,0.00015,2]
[330630941,1719663042898,-151.0,0.00015,2]
[330630942,1719663042908,-151.0,0.00015,2]
[330630943,1719663042918,-151.0,0.00015,2]
[330630944,1719663042928,-151.0,0.00015,2]
[330630945,1719663042937,-233.457134,0.00015,2]
[330630946,1719663042949,-187.677369,0.00015,2]
[330630947,1719663042959,-187.677369,0.00015,2]
[330630948,1719663042969,-151.0,0.00015,2]
[330630949,1719663042979,-151.0,0.00015,2]
[330630950,1719663042989,-191.07112,0.00015,2]
[330630951,1719663042999,-151.0,0.00015,2]
[330630952,1719663043009,-490.0,0.00015,2]
[330630953,1719663043019,-151.0,0.00015,2]
[330630954,1719663043029,-151.0,0.00015,2]
[330630955,1719663043038,-554.068281,0.00015,2]
[330630956,1719663043047,-554.068281,0.00015,2]
[330630957,1719663043057,-258.211994,0.00015,2]
[330630958,1719663043067,-350.05378,0.00015,2]
[330630959,1719663043077,-350.05378,0.00015,2]
[330630960,1719663043086,-151.0,0.00015,2]
[330630961,1719663043096,-154.909296,0.00015,2]
[330630962,1719663043105,-151.0,0.00015,2]
[330630963,1719663043114,-154.909296,0.00015,2]
[330630964,1719663043123,-151.0,0.00015,2]
[330630965,1719663043133,-151.0,0.00015,2]
[330630966,1719663043143,-215.511527,0.00015,2]
[330630967,1719663043153,-215.511527,0.00015,2]
[330630968,1719663043162,-151.0,0.00015,2]
[330630969,1719663043171,-151.0,0.00015,2]
[330630970,1719663043181,-151.0,0.00015,2]
[330630971,1719663043191,-757.360483,0.00015,2]
[330630972,1719663043200,-757.360483,0.00015,2]
[330630973,1719663043209,-151.0,0.00015,2]
[330630974,1719663043219,-373.595618,0.00015,2]
[330630975,1719663043229,-373.595618,0.00015,2]
[330630976,1719663043239,-326.029039,0.00015,2]
[330630977,1719663043248,-326.029039,0.00015,2]
[330630978,1719663043258,-151.0,0.00015,2]
[330630979,1719663043267,-151.0,0.00015,2]
[330630980,1719663043276,-151.0,0.00015,2]
[330630981,1719663043286,-336.959273,0.00015,2]
[330630982,1719663043296,-315.691999,0.00015,2]
[330630983,1719663043305,-336.959273,0.00015,2]
[330630984,1719663043317,-315.691999,0.00015,2]
[330630985,1719663043327,-208.79343,0.00015,2]
[330630986,1719663043336,-208.79343,0.00015,2]
[330630987,1719663043346,-3901.39668,0.00015,2]
[330630988,1719663043356,-3901.39668,0.00015,2]
[330630989,1719663043366,-150.0,0.00015,2]
[330630990,1719663043375,-151.0,0.00015,2]
[330630991,1719663043385,-270.0,0.00015095,2]
[330630992,1719663043394,-525.75,0.00015104,2]
[330630993,1719663043404,-800.0,0.00015208,2]
[330630994,1719663043413,-184.15271347,0.00015333,2]
[330630995,1719663043423,-240.0,0.00015463,2]
[330630996,1719663043432,-4603.23590446,0.00015479,2]
[330630997,1719663043442,-190.00481984,0.00015548,2]
[330630998,1719663043451,-700.98,0.00015548,2]
[330630999,1719663043461,-638.0,0.000157,2]
[330631000,1719663043470,-3064.0,0.000158,2]
[330631001,1719663043480,-972.49329726,0.00015875,2]
[330631002,1719663043489,-14241.66359608,0.00015875,2]
[330631003,1719663043509,-164.60925872,0.00016267,2]
[330631004,1719663043519,-4603.23590446,0.00016268,2]
[330631005,1719663043529,-164.6,0.00016551,2]
[330631006,1719663043540,-354.29,0.00016551,2]
[330631007,1719663043550,-300.76,0.00016555,2]
[330631008,1719663043561,-354.62,0.00016555,2]
[330631009,1719663043571,-164.75,0.00016555,2]
[330631010,1719663043580,-354.62,0.00016555,2]
[330631011,1719663043591,-164.75,0.00016555,2]
[330631012,1719663043600,-184.15271347,0.0001663,2]
[330631013,1719663043611,-800.0,0.00016729,2]
[330631014,1719663043620,-972.49329726,0.0001692,2]
[330631015,1719663043630,-14241.66359608,0.0001692,2]
[330631016,1719663043640,-4603.23590446,0.00017058,2]
[330631017,1719663043649,-700.98,0.00017103,2]
[330631018,1719663043659,-525.75,0.00017367,2]
[330631019,1719663043669,-151.0,0.00017763,2]
[330631020,1719663043679,-227.02046916,0.00017829,2]
[330631021,1719663043689,-4603.23590446,0.00017847,2]
[330631022,1719663043699,-184.15271347,0.00017927,2]
[330631023,1719663043708,-204.0,0.0001796,2]
[330631024,1719663043718,-246.0,0.0001796,2]
[330631025,1719663043727,-972.49329726,0.00017966,2]
[330631026,1719663043737,-14241.66359608,0.00017966,2]
[330631027,1719663043747,-151.0,0.00018051,2]
[330631028,1719663043756,-151.0,0.00018051,2]
[330631029,1719663043766,-151.0,0.00018051,2]
[330631030,1719663043775,-221.965169,0.00018051,2]
[330631031,1719663043785,-151.0,0.00018051,2]
[330631032,1719663043795,-554.068281,0.00018051,2]
[330631033,1719663043805,-554.068281,0.00018051,2]
[330631034,1719663043818,-350.05378,0.00018051,2]
[330631035,1719663043828,-350.05378,0.00018051,2]
[330631036,1719663043837,-154.909296,0.00018051,2]
[330631037,1719663043847,-151.0,0.00018051,2]
[330631038,1719663043856,-154.909296,0.00018051,2]
[330631039,1719663043866,-151.0,0.00018051,2]
[330631040,1719663043880,-151.0,0.00018051,2]
[330631041,1719663043890,-215.511527,0.00018051,2]
[330631042,1719663043900,-215.511527,0.00018051,2]
[330631043,1719663043910,-151.0,0.00018051,2]
[330631044,1719663043920,-151.0,0.00018051,2]
[330631045,1719663043929,-151.0,0.00018051,2]
[330631046,1719663043939,-757.360483,0.00018051,2]
[330631047,1719663043948,-757.360483,0.00018051,2]
[330631048,1719663043959,-151.0,0.00018051,2]
[330631049,1719663043970,-373.595618,0.00018051,2]
[330631050,1719663043980,-373.595618,0.00018051,2]
[330631051,1719663043989,-151.0,0.00018051,2]
[330631052,1719663043998,-187.677369,0.00018066,2]
[330631053,1719663044008,-187.677369,0.00018066,2]
[330631054,1719663044017,-800.0,0.0001825,2]
[330631055,1719663044027,-164.60925872,0.00018633,2]
[330631056,1719663044037,-4603.23590446,0.00018637,2]
[330631057,1719663044047,-700.98,0.00018658,2]
[330631058,1719663044057,-200.92918961,0.00018749,2]
[330631059,1719663044434,-2000.0,0.00018849,2]
[330631060,1719663044449,-200.0,0.00018849,2]
[330631061,1719663044459,-200.0,0.00018849,2]
[330631062,1719663044468,-650.99676465,0.00018864,2]
[330631063,1719663044477,-1900.0,0.000189,6]
[330631064,1719663044487,-346.29611992,0.000189,2]
[330631065,1719663044497,-12758.73684644,0.00019,2]
[330631066,1719663044507,-2000.0,0.00019,3]
[330631067,1719663044516,-6164.33994647,0.00019,2]
[330631068,1719663044525,-151.0,0.00019,2]
[330631069,1719663044535,-151.0,0.00019,2]
[330631070,1719663044544,-151.0,0.00019,2]
[330631071,1719663044554,-151.0,0.00019,2]
[330631072,1719663044564,-151.0,0.00019,2]
[330631073,1719663044574,-326.029039,0.00019,2]
[330631074,1719663044584,-326.029039,0.00019,2]
[330631075,1719663044595,-2869.29574,0.00019,2]
[330631076,1719663044605,-151.0,0.00019,2]
[330631077,1719663044614,-151.0,0.00019,2]
[330631078,1719663044623,-336.959273,0.00019,2]
[330631079,1719663044632,-315.691999,0.00019,2]
[330631080,1719663044641,-336.959273,0.00019,2]
[330631081,1719663044651,-315.691999,0.00019,2]
[330631082,1719663044660,-208.79343,0.00019,2]
[330631083,1719663044670,-208.79343,0.00019,2]
[330631084,1719663044680,-3901.39668,0.00019,2]
[330631085,1719663044690,-3901.39668,0.00019,2]
[330631086,1719663044699,-151.0,0.00019,2]
[330631087,1719663044709,-972.49329726,0.00019011,2]
[330631088,1719663044719,-14241.66359608,0.00019011,2]
[330631089,1719663044727,-200.0,0.00019037,2]
[330631090,1719663044737,-200.0,0.00019037,2]
[330631091,1719663044746,-150.0,0.00019178,2]
[330631092,1719663044756,-250.0,0.00019178,2]
[330631093,1719663044767,-814.023028,0.00019178,2]
[330631094,1719663044776,-814.023028,0.00019178,2]
[330631095,1719663044785,-814.023028,0.00019178,2]
[330631096,1719663044794,-814.023028,0.00019178,2]
[330631097,1719663044803,-814.023028,0.00019178,2]
[330631098,1719663044813,-814.023028,0.00019178,2]
[330631099,1719663044822,-424.06,0.00019192,2]
[330631100,1719663044832,-150.0,0.00019192,2]
[330631101,1719663044842,-150.63,0.00019192,2]
[330631102,1719663044851,-354.62,0.00019192,2]
[330631103,1719663044860,-153.68,0.00019192,2]
[330631104,1719663044875,-152.2,0.00019192,2]
[330631105,1719663044884,-150.0,0.00019192,2]
[330631106,1719663044893,-164.75,0.00019192,2]
[330631107,1719663044903,-354.62,0.00019192,2]
[330631108,1719663044913,-150.0,0.00019192,2]
[330631109,1719663044922,-150.0,0.00019192,2]
[330631110,1719663044931,-424.06,0.00019192,2]
[330631111,1719663044941,-150.0,0.00019192,2]
[330631112,1719663044952,-164.75,0.00019192,2]
[330631113,1719663044963,-424.06,0.00019192,2]
[330631114,1719663044971,-150.0,0.00019192,2]
[330631115,1719663044980,-150.0,0.00019192,2]
[330631116,1719663044989,-150.0,0.00019192,2]
[330631117,1719663044998,-354.62,0.00019192,2]
[330631118,1719663045008,-164.75,0.00019192,2]
[330631119,1719663045017,-424.06,0.00019192,2]
[330631120,1719663045027,-164.75,0.00019192,2]
[330631121,1719663045036,-150.0,0.00019192,2]
[330631122,1719663045046,-150.0,0.00019192,2]
[330631123,1719663045055,-354.62,0.00019192,2]
[330631124,1719663045065,-528.11,0.00019192,2]
[330631125,1719663045074,-422.71,0.00019192,2]
[330631126,1719663045083,-528.11,0.00019192,2]
[330631127,1719663045093,-527.0,0.00019192,2]
[330631128,1719663045102,-164.25,0.00019192,2]
[330631129,1719663045111,-353.47,0.00019192,2]
[330631130,1719663045120,-150.0,0.00019192,2]
[330631131,1719663045129,-150.0,0.00019192,2]
[330631132,1719663045139,-184.15271347,0.00019224,2]
[330631133,1719663045148,-200.0,0.00019228,2]
[330631134,1719663045157,-200.0,0.0001942,2]
[330631135,1719663045166,-4603.23590446,0.00019426,2]
[330631136,1719663045176,-204.0,0.0001943,2]
[330631137,1719663045185,-246.0,0.0001943,2]
[330631138,1719663045195,-2000.0,0.000195,2]
[330631139,1719663045204,-200.0,0.00019614,2]
[330631140,1719663045213,-525.75,0.00019631,2]
[330631141,1719663045222,-150.0,0.00019683,2]
[330631142,1719663045231,-1000.0,0.00019773,2]
[330631143,1719663045240,-1500.0,0.00019789,2]
[330631144,1719663045250,-3422.22711694,0.000198,7]
[330631145,1719663045259,-2300.0,0.000198,7]
[330631146,1719663045268,-150.0,0.00019874,2]
[330631147,1719663045278,-400.0,0.000199,7]
[330631148,1719663045287,-20819.65232932,0.00019989,2]
[330631149,1719663045296,-151.0,0.00019989,2]
[330631150,1719663045305,-105341.43483195,0.0002,7]
[330631151,1719663045315,-162150.32008782,0.0002,2]
[330631157,1719663045641,-1103.0,0.0002,2]
[330631161,1719663046451,-422.24066894,0.0002,2]
[330631162,1719663046463,-989.61415752,0.0002,2]
[330631163,1719663047051,-77801.86292998,0.0002,2]
[330631164,1719663052084,473.0272,0.00011099,2]
[330631165,1719663159140,221.74,0.00018849,30]
[330631166,1719663182068,3022.28056517,0.00011098,2]
[330631167,1719663183100,450.0,0.00011142,2]
[330631168,1719663222357,205.93,0.00025872,120]
[330631169,1719663229083,3236.01137135,0.00011098,2]
[330631170,1719663319548,463.35873498,0.00011098,2]
[330631171,1719663336888,625.50090201,0.00011098,2]
[330631172,1719663337922,528.46230477,0.00011098,2]
[330631173,1719663354085,198.28264365,0.00011098,2]
[330631174,1719663364903,193.50102493,0.00011098,2]
[330631178,1719663374100,1339.79210659,0.00011098,2]
[330631180,1719663385444,155.18190905,0.00011098,2]
[330631181,1719663386793,297.24474814,0.00011098,2]
[330631182,1719663388029,202.10581647,0.00011098,2]
[330631183,1719663388125,227.02046916,0.00011098,2]
[330631184,1719663390147,155.0,0.00011098,2]
[330631187,1719663433982,305.13007106,0.00011098,2]
[330631188,1719663450920,368.59840723,0.00011098,2]
[330631192,1719663598455,2374.1385064,0.00011098,2]
[330631193,1719663658091,158.73260561,0.00011098,2]
[330631194,1719663693413,625.16343097,0.00011098,2]
[330631195,1719663693444,2004.97925289,0.00011098,2]
[330631196,1719663719936,527.57112597,0.00011098,2]
[330631198,1719663741059,203.26,0.00018849,30]
[330631200,1719663757908,193.50102493,0.00011098,2]
[330631201,1719663774049,155.85150118,0.00011098,2]
[330631202,1719663795537,6949.0688,0.00011099,2]
[330631203,1719663805632,227.02046916,0.00011098,2]
[330631205,1719663854334,182.33807909,0.00011098,2]
[330631208,1719663933636,155.0,0.00011098,2]
[330631211,1719664029526,456.54945534,0.00011098,2]
[330631212,1719664038634,155.0,0.00011098,2]
[330631213,1719664050379,155.0,0.00011098,2]
[330631214,1719664059968,192.22649307,0.00011098,2]
[330631216,1719664076959,193.50102493,0.00011098,2]
[330631218,1719664161642,155.0,0.00011098,2]
[330631219,1719664163111,-300.0,0.00011198,2]
[330631220,1719664163132,-2537.135,0.00011199,2]
[330631240,1719664232083,-640.72236204,0.00011197,2]
[330631241,1719664232094,-305.59503527,0.00011197,2]
[330631242,1719664232103,-227.02046916,0.00011197,2]
[330631243,1719664232113,-107.44474291,0.00011199,2]
[330631244,1719664232124,-322.91174239,0.00011199,2]
[330631245,1719664232135,-1463.45546276,0.00011199,2]
[330631246,1719664232146,-2199.03870347,0.00011199,2]
[330631247,1719664232175,-938.21279485,0.00011199,2]
[330631248,1719664232187,-2005.57355483,0.00011199,2]
[330631249,1719664232207,-451.92492773,0.00011199,2]
[330631250,1719664232236,-5401.53209139,0.00011199,2]
[330631251,1719664232246,-236.2266946,0.00012314,2]
[330631252,1719664232255,-624.33,0.00012467,2]
[330631253,1719664232265,-150.0,0.00012727,2]
[330631254,1719664232275,-4199.05197401,0.00012728,2]
[330631255,1719664232287,-490.54460997,0.00012728,2]
[330631263,1719664238074,-1214.80253227,0.00012728,2]
[330631264,1719664238086,-2200.0,0.00012728,2]
[330631265,1719664238174,-1235.9041344,0.00012728,2]
[330631266,1719664238186,-62027.38594935,0.00012728,2]
[330631267,1719664238196,-9700.0161,0.00012728,2]
[330631268,1719664238205,-210.65124917,0.00013574,2]
[330631269,1719664238214,-150.99,0.00013799,2]
[330631270,1719664238224,-384.28,0.00013821,2]
[330631271,1719664238234,-255.48375736,0.00013902,2]
[330631273,1719664238245,-329.54048749,0.00013902,2]
[330631274,1719664238255,-499.99,0.00013975,2]
[330631275,1719664238264,-210.0,0.00013975,2]
[330631276,1719664238275,-447642.56418489,0.00013989,2]
[330631277,1719664238284,-23900.0,0.00014002,2]
[330631278,1719664238295,-4587.33662528,0.00014087,2]
[330631280,1719664238304,-11393.3308769,0.00014087,2]
[330631281,1719664238316,-243.22,0.00014287,2]
[330631282,1719664238325,-500.59,0.00014409,2]
[330631283,1719664238334,-250.0,0.00014409,2]
[330631285,1719664238344,-624.33,0.00014731,2]
[330631287,1719664238353,-1210.46,0.00014758,2]
[330631289,1719664238362,-7227.12,0.00014761,2]